fUSD/lending_fUSD_20240623
["ID","MTS","AMOUNT","RATE_DAILY","PERIOD"]
[330203395,1719146264861,-837.04,0.00030136,120]
[330203396,1719146264886,-837.04,0.00030136,120]
[330203397,1719146264913,-837.04,0.00030136,120]
[330203398,1719146264938,-837.04,0.00030136,120]
[330203399,1719146264963,-837.04,0.00030136,120]
[330203400,1719146264988,-837.04,0.00030136,120]
[330203401,1719146265014,-837.04,0.00030136,120]
[330203402,1719146265038,-837.04,0.00030136,120]
[330203403,1719146265063,-837.04,0.00030136,120]
[330203404,1719146265088,-837.04,0.00030136,120]
[330203405,1719146265114,-837.04,0.00030136,120]
[330203406,1719146265139,-837.04,0.00030136,120]
[330203407,1719146265165,-837.04,0.00030136,120]
[330203408,1719146265191,-837.04,0.00030136,120]
[330203409,1719146265216,-837.04,0.00030136,120]
[330203410,1719146265240,-837.04,0.00030136,120]
[330203411,1719146265271,-837.04,0.00030136,120]
[330203412,1719146265297,-837.04,0.00030136,120]
[330203413,1719146265323,-837.10852372,0.00030136,120]
[330203414,1719146265352,-200.0,0.00030137,60]
[330203415,1719146265377,-2110.0,0.00030151,15]
[330203416,1719146265404,-237.76,0.00030273,30]
[330203417,1719146265432,-237.76,0.0003041,30]
[330203418,1719146265459,-192.0,0.000305,19]
[330203419,1719146265485,-237.85209814,0.00030547,30]
[330203420,1719146265513,-2110.0,0.00030651,15]
[330203421,1719146265768,-150.0,0.00030796,120]
[330203422,1719146265791,-250.0,0.000308,30]
[330203423,1719146265814,-250.0,0.00031,120]
[330203424,1719146265838,-192.0,0.00031,19]
[330203425,1719146265862,-150.0,0.00031002,120]
[330203426,1719146265887,-150.0,0.00031086,120]
[330203427,1719146265912,-150.0,0.00031144,120]
[330203428,1719146265936,-2110.0,0.00031151,15]
[330203429,1719146265961,-150.0,0.00031183,120]
[330203430,1719146265986,-150.0,0.00031318,120]
[330203431,1719146266010,-150.0,0.00031424,120]
[330203432,1719146266033,-192.0,0.000315,20]
[330203433,1719146266056,-2110.0,0.00031651,15]
[330203434,1719146266081,-150.0,0.00031771,120]
[330203435,1719146266105,-150.0,0.00031853,120]
[330203436,1719146266132,-341.58591605,0.00032,14]
[330203437,1719146266156,-500.0,0.00032,120]
[330203438,1719146266181,-500.0,0.00032,120]
[330203439,1719146266204,-192.0,0.00032,20]
[330203440,1719146266229,-2110.0,0.00032151,15]
[330203441,1719146266253,-261.35031852,0.00032393,40]
[330203442,1719146266280,-150.0,0.0003242,120]
[330203443,1719146266304,-192.0,0.000325,21]
[330203444,1719146266329,-150.0,0.00032526,120]
[330203445,1719146266362,-2110.0,0.00032651,15]
[330203446,1719146266389,-150.0,0.00032773,120]
[330203447,1719146266412,-486.8879635,0.00032876,30]
[330203448,1719146266443,-200.0,0.00032877,60]
[330203449,1719146266467,-4000.0,0.00032877,30]
[330203450,1719146266492,-165425.64814652,0.000329,30]
[330203451,1719146291231,-151.0,0.00020469,120]
[330203453,1719146365035,-1404.21658785,0.0003,60]
[330203454,1719146365067,-2416.0,0.00031661,120]
[330203455,1719146365101,-159.09153235,0.00033,120]
[330203456,1719146365126,-500.0,0.00033,120]
[330203457,1719146365151,-2379.05,0.00033151,120]
[330203458,1719146365175,-1399.6,0.00033151,120]
[330203459,1719146365201,-150.0,0.0003337,120]
[330203460,1719146365227,-150.0,0.00033473,120]
[330203461,1719146365252,-150.0,0.00033519,120]
[330203462,1719146365518,-800.0,0.00034,120]
[330203463,1719146365542,-500.0,0.00034,120]
[330203464,1719146365569,-150.0,0.00034274,120]
[330203465,1719146365596,-150.0,0.00034566,120]
[330203466,1719146365621,-200.0,0.00035,120]
[330203467,1719146365645,-217.95124268,0.00035,120]
[330203468,1719146365669,-876.123075,0.00035,120]
[330203469,1719146365692,-500.0,0.00035,120]
[330203470,1719146365716,-672.59059723,0.00035,120]
[330203471,1719146365741,-150.0,0.00035212,120]
[330203472,1719146365766,-150.0,0.00035421,120]
[330203473,1719146365790,-150.0,0.0003553,120]
[330203474,1719146365814,-1102.79,0.00035616,90]
[330203475,1719146365839,-1102.79,0.00035616,90]
[330203476,1719146365863,-1102.79,0.00035616,90]
[330203477,1719146365888,-1102.79,0.00035616,90]
[330203478,1719146365911,-1102.79,0.00035616,90]
[330203479,1719146365936,-1102.79,0.00035616,90]
[330203480,1719146365960,-1102.79,0.00035616,90]
[330203481,1719146365984,-1102.79,0.00035616,90]
[330203482,1719146366009,-1102.79,0.00035616,90]
[330203483,1719146366034,-1102.79,0.00035616,90]
[330203484,1719146366058,-1102.79,0.00035616,90]
[330203485,1719146366083,-1102.79,0.00035616,90]
[330203486,1719146366108,-1102.79,0.00035616,90]
[330203487,1719146366134,-1102.79,0.00035616,90]
[330203488,1719146366159,-1102.79,0.00035616,90]
[330203489,1719146366184,-1102.79,0.00035616,90]
[330203490,1719146366209,-1102.79,0.00035616,90]
[330203491,1719146366235,-1102.79,0.00035616,90]
[330203492,1719146366260,-1102.79,0.00035616,90]
[330203493,1719146366286,-1102.79,0.00035616,90]
[330203494,1719146366312,-1102.79,0.00035616,90]
[330203495,1719146366338,-1102.79,0.00035616,90]
[330203496,1719146366362,-1102.79,0.00035616,90]
[330203497,1719146366390,-1102.92927138,0.00035616,90]
[330203498,1719146366414,-200.0,0.00035616,60]
[330203499,1719146366440,-800.0,0.00036,120]
[330203500,1719146366467,-500.0,0.00036,120]
[330203501,1719146366495,-150.0,0.00036831,120]
[330203502,1719146366520,-150.0,0.00036978,120]
[330203503,1719146366544,-500.0,0.00037,120]
[330203504,1719146366569,-150.0,0.00037477,120]
[330203505,1719146366595,-155.0,0.00038,90]
[330203506,1719146366619,-850.0,0.00038,120]
[330203507,1719146366645,-1031.03367882,0.00038,120]
[330203508,1719146366668,-500.0,0.00038,120]
[330203509,1719146366693,-150.0,0.00038206,120]
[330203510,1719146366717,-500.0,0.00038356,120]
[330203511,1719146366741,-500.0,0.00038356,120]
[330203512,1719146366764,-500.0,0.00038356,120]
[330203513,1719146366788,-500.0,0.00038356,120]
[330203514,1719146366817,-500.0,0.00038356,120]
[330203515,1719146366841,-500.0,0.00038356,120]
[330203516,1719146366865,-500.0,0.00038356,120]
[330203517,1719146366888,-500.0,0.00038356,120]
[330203518,1719146366912,-500.0,0.00038356,120]
[330203519,1719146366937,-500.0,0.00038356,120]
[330203520,1719146366962,-500.0,0.00038356,120]
[330203521,1719146366987,-500.0,0.00038356,120]
[330203522,1719146367014,-500.0,0.00038356,120]
[330203523,1719146367039,-500.0,0.00038356,120]
[330203524,1719146367063,-500.0,0.00038356,120]
[330203525,1719146367090,-500.0,0.00038356,120]
[330203526,1719146367114,-500.0,0.00038356,120]
[330203527,1719146367139,-500.0,0.00038356,120]
[330203528,1719146367163,-424.84604892,0.00038356,120]
[330203529,1719146367189,-200.0,0.00038356,60]
[330203530,1719146367216,-1426.67709567,0.00039,120]
[330203531,1719146367241,-500.0,0.00039,120]
[330203532,1719146367267,-150.0,0.0003902,120]
[330203533,1719146367292,-150.0,0.00039054,120]
[330203534,1719146367319,-250.0,0.00039874,45]
[330203535,1719146367347,-408.0,0.00039896,90]
[330203536,1719146367372,-2701.28254661,0.00039998,60]
[330203537,1719146367401,-200.0,0.0004,120]
[330203538,1719146367426,-700.0,0.0004,120]
[330203539,1719146367450,-345.35787498,0.0004,120]
[330203540,1719146367478,-655.10853461,0.0004,120]
[330203541,1719146367502,-1059.49,0.0004,120]
[330203542,1719146367527,-3916.51718197,0.0004,40]
[330203543,1719146367552,-696.0,0.0004,60]
[330203544,1719146367577,-707.1746179,0.0004,120]
[330203545,1719146367606,-298.31089469,0.0004,60]
[330203546,1719146367632,-690.02075387,0.0004,120]
[330203547,1719146367658,-300.0,0.00040021,120]
[330203548,1719146367686,-150.0,0.00040084,120]
[330203549,1719146367713,-157.062311,0.00040148,70]
[330203550,1719146367743,-202.32808576,0.0004025,120]
[330203551,1719146367770,-150.0,0.00040297,120]
[330203552,1719146367797,-150.0,0.00040302,120]
[330203553,1719146367824,-161.062311,0.00040448,71]
[330203554,1719146367855,-2398.0,0.000407,81]
[330203555,1719146367882,-157.062311,0.00040748,72]
[330203556,1719146367912,-778.9635043,0.000409,120]
[330203557,1719146367937,-778.96350412,0.000409,120]
[330203558,1719146367962,-778.96350412,0.000409,120]
[330203559,1719146367988,-778.96350412,0.000409,120]
[330203560,1719146368014,-778.96350412,0.000409,120]
[330203561,1719146368040,-778.96350412,0.000409,120]
[330203562,1719146368065,-778.96350412,0.000409,120]
[330203563,1719146368095,-778.96350412,0.000409,120]
[330203564,1719146368122,-778.96350412,0.000409,120]
[330203565,1719146368279,-778.96350412,0.000409,120]
[330203566,1719146368340,-778.96350412,0.000409,120]
[330203567,1719146368366,-778.96350412,0.000409,120]
[330203568,1719146368395,-778.96350412,0.000409,120]
[330203569,1719146368421,-150.0,0.00040935,120]
[330203570,1719146368447,-150.0,0.00040991,120]
[330203571,1719146368475,-351.77073739,0.00041,120]
[330203572,1719146368499,-228.50749117,0.00041,60]
[330203573,1719146368523,-491.58,0.00041,120]
[330203574,1719146368549,-510.0,0.00041095,120]
[330203575,1719146368575,-503.09120915,0.00041095,120]
[330203576,1719146368602,-200.0,0.00041096,60]
[330203577,1719146368627,-249.29298691,0.00041096,60]
[330203578,1719146368652,-500.0,0.00041096,120]
[330203579,1719146368676,-382.25,0.00041096,120]
[330203580,1719146368701,-537025.00865711,0.00041096,40]
[330203581,1719146368727,-1375999.91681124,0.00041096,40]
[330203582,1719146373594,-778.96350412,0.000409,120]
[330203583,1719146373625,-309864.99252296,0.00041096,40]
[330203584,1719146373652,-161.062311,0.00041148,73]
[330203585,1719146373677,-249.29298691,0.0004126,60]
[330203586,1719146373704,-510.0,0.00041369,120]
[330203587,1719146373728,-249.29298691,0.00041425,60]
[330203588,1719146373753,-157.062311,0.00041448,74]
[330203589,1719146373778,-150.0,0.00041538,120]
[330203590,1719146373802,-150.0,0.00041554,120]
[330203591,1719146373827,-249.29298691,0.00041589,60]
[330203592,1719146373853,-510.0,0.00041643,120]
[330203593,1719146373878,-150.0,0.00041674,120]
[330203594,1719146373904,-150.0,0.00041735,120]
[330203595,1719146373931,-161.062311,0.00041748,77]
[330203596,1719146373956,-249.29298691,0.00041753,60]
[330203597,1719146374199,-300.0,0.00041787,120]
[330203598,1719146374225,-407.8405951,0.0004182,120]
[330203599,1719146374252,-150.0,0.00041838,120]
[330203600,1719146374277,-1113.39711438,0.000419,120]
[330203601,1719146374303,-159.50095906,0.000419,120]
[330203602,1719146374327,-510.0,0.00041917,120]
[330203603,1719146374356,-249.29298691,0.00041918,60]
[330203604,1719146374384,-292.1490324,0.00042,120]
[330203605,1719146374408,-761.64678286,0.00042,120]
[330203606,1719146374433,-943.63212039,0.00042,120]
[330203607,1719146374458,-711.0261854,0.00042,120]
[330203608,1719146374482,-161.70070994,0.00042,120]
[330203609,1719146374507,-30000.0,0.00042,120]
[330203610,1719146374532,-2513.0,0.00042,120]
[330203611,1719146374561,-157.062311,0.00042148,78]
[330203612,1719146374586,-215.18322438,0.00042191,120]
[330203613,1719146374614,-161.062311,0.00042448,79]
[330203614,1719146374639,-1079.38770123,0.00042497,120]
[330203615,1719146374667,-150.0,0.00042701,120]
[330203616,1719146374693,-157.062311,0.00042748,80]
[330203617,1719146374718,-191.5642028,0.0004288,120]
[330203618,1719146374742,-710.0,0.000429,120]
[330203619,1719146374766,-906.2442364,0.00042901,40]
[330203620,1719146374791,-3111.9,0.00043,120]
[330203621,1719146374815,-600.0,0.00043,120]
[330203622,1719146374839,-5311.56563308,0.00043,60]
[330203623,1719146374863,-216.34290339,0.00043,120]
[330203624,1719146374888,-201.32112741,0.0004302,120]
[330203625,1719146374915,-150.0,0.00043031,120]
[330203626,1719146374949,-150.0,0.00043063,120]
[330203627,1719146374975,-150.0,0.00043087,120]
[330203628,1719146375005,-157.062311,0.00043148,81]
[330203629,1719146375032,-150.0,0.00043244,120]
[330203630,1719146375058,-150.0,0.00043347,120]
[330203631,1719146375088,-161.062311,0.00043448,70]
[330203632,1719146375113,-300.0,0.00043552,120]
[330203633,1719146375139,-150.0,0.00043681,120]
[330203634,1719146375166,-157.062311,0.00043748,71]
[330203635,1719146375191,-2649.43,0.00043756,120]
[330203636,1719146375217,-150.0,0.0004378,120]
[330203637,1719146375243,-484.04309827,0.000438,120]
[330203638,1719146375274,-500.0,0.00043835,120]
[330203639,1719146375299,-500.0,0.00043835,120]
[330203640,1719146375324,-4272.59,0.00043835,120]
[330203641,1719146375349,-150.57161609,0.00043835,120]
[330203642,1719146375376,-361.83989799,0.00043835,120]
[330203643,1719146375408,-500.0,0.00043835,120]
[330203644,1719146375435,-506.73,0.00043835,120]
[330203645,1719146375463,-506.73,0.00043835,120]
[330203646,1719146375489,-506.73,0.00043835,120]
[330203647,1719146375515,-506.73,0.00043835,120]
[330203648,1719146375540,-506.73,0.00043835,120]
[330203649,1719146375566,-506.73,0.00043835,120]
[330203650,1719146375590,-506.73,0.00043835,120]
[330203651,1719146375614,-506.73,0.00043835,120]
[330203652,1719146375639,-506.73,0.00043835,120]
[330203653,1719146375662,-506.73,0.00043835,120]
[330203654,1719146375686,-506.73,0.00043835,120]
[330203655,1719146375710,-506.73,0.00043835,120]
[330203656,1719146375734,-506.73,0.00043835,120]
[330203657,1719146375758,-506.73,0.00043835,120]
[330203658,1719146375782,-506.73,0.00043835,120]
[330203659,1719146375806,-506.73,0.00043835,120]
[330203660,1719146375830,-506.73,0.00043835,120]
[330203661,1719146375854,-506.73,0.00043835,120]
[330203662,1719146375878,-506.73,0.00043835,120]
[330203663,1719146375903,-506.73,0.00043835,120]
[330203664,1719146375932,-506.73,0.00043835,120]
[330203665,1719146375956,-506.73,0.00043835,120]
[330203666,1719146375979,-506.73,0.00043835,120]
[330203667,1719146376004,-506.79813699,0.00043835,120]
[330203668,1719146376028,-264.00893809,0.00043836,60]
[330203669,1719146376053,-278.56508711,0.00043868,40]
[330203670,1719146376077,-327.49877144,0.00043868,40]
[330203671,1719146376101,-584.21459092,0.00043868,40]
[330203672,1719146376129,-178.44940187,0.0004388,120]
[330203673,1719146376155,-1115.13346702,0.000439,120]
[330203674,1719146376182,-833.61319228,0.000439,120]
[330203675,1719146376207,-2638.9,0.00043951,99]
[330203676,1719146376235,-1000000.0,0.00044,40]
[330203677,1719146376261,-272.6578127,0.00044,120]
[330203678,1719146376287,-700.0,0.00044,120]
[330203679,1719146376313,-2500.0,0.00044,120]
[330203680,1719146376338,-750.0,0.00044,120]
[330203681,1719146376363,-679.32559,0.00044,57]
[330203682,1719146376391,-500.0,0.00044109,120]
[330203683,1719146376419,-161.062311,0.00044148,72]
[330203684,1719146376446,-150.0,0.00044155,120]
[330203685,1719146376474,-927.08633289,0.000442,120]
[330203686,1719146376499,-927.08633289,0.000442,120]
[330203687,1719146376523,-927.08633289,0.000442,120]
[330203688,1719146376547,-927.08633289,0.000442,120]
[330203689,1719146376571,-927.08633289,0.000442,120]
[330203690,1719146376597,-150.0,0.00044345,120]
[330203691,1719146376621,-3592.36430642,0.0004438,120]
[330203692,1719146376646,-3592.36430642,0.0004438,120]
[330203693,1719146376670,-3592.36430642,0.0004438,120]
[330203694,1719146376698,-3592.36430642,0.0004438,120]
[330203695,1719146376723,-3592.36430642,0.0004438,120]
[330203696,1719146376747,-3592.36430642,0.0004438,120]
[330203697,1719146376772,-3592.36430642,0.0004438,120]
[330203698,1719146376797,-3592.36430642,0.0004438,120]
[330203699,1719146376821,-3592.36430642,0.0004438,120]
[330203700,1719146376847,-3592.36430642,0.0004438,120]
[330203701,1719146377036,-3592.36430642,0.0004438,120]
[330203702,1719146377063,-3592.36430642,0.0004438,120]
[330203703,1719146377088,-3592.36430642,0.0004438,120]
[330203704,1719146377114,-3592.36430642,0.0004438,120]
[330203705,1719146377141,-3592.36430642,0.0004438,120]
[330203706,1719146377164,-3592.36430642,0.0004438,120]
[330203707,1719146377188,-3592.36430642,0.0004438,120]
[330203708,1719146377212,-3592.36430642,0.0004438,120]
[330203709,1719146377236,-3592.36430642,0.0004438,120]
[330203710,1719146377261,-3592.86,0.0004438,120]
[330203711,1719146377285,-14369.53222568,0.0004438,120]
[330203712,1719146377308,-14369.53222568,0.0004438,120]
[330203713,1719146377331,-14369.53222568,0.0004438,120]
[330203714,1719146377360,-14369.53222568,0.0004438,120]
[330203715,1719146377386,-14369.53222568,0.0004438,120]
[330203716,1719146377410,-14369.53222568,0.0004438,120]
[330203717,1719146377435,-14369.53222568,0.0004438,120]
[330203718,1719146377461,-14369.53222568,0.0004438,120]
[330203719,1719146377485,-14369.53222568,0.0004438,120]
[330203720,1719146377510,-14369.53222568,0.0004438,120]
[330203721,1719146377533,-14369.53222568,0.0004438,120]
[330203722,1719146377559,-14369.53222568,0.0004438,120]
[330203723,1719146377582,-14369.53222568,0.0004438,120]
[330203724,1719146377607,-14369.53222568,0.0004438,120]
[330203725,1719146377630,-14369.53222568,0.0004438,120]
[330203726,1719146377654,-14369.53222568,0.0004438,120]
[330203727,1719146377678,-14369.53222568,0.0004438,120]
[330203728,1719146377702,-14369.53222568,0.0004438,120]
[330203729,1719146377726,-14369.53222568,0.0004438,120]
[330203730,1719146377749,-14370.03,0.0004438,120]
[330203731,1719146377774,-228.62266958,0.0004438,120]
[330203732,1719146377798,-228.62266958,0.0004438,120]
[330203733,1719146377821,-228.62266958,0.0004438,120]
[330203734,1719146377847,-228.62266958,0.0004438,120]
[330203735,1719146377874,-228.62266958,0.0004438,120]
[330203736,1719146377898,-228.62266958,0.0004438,120]
[330203737,1719146377922,-228.62266958,0.0004438,120]
[330203738,1719146377945,-228.62266958,0.0004438,120]
[330203739,1719146377970,-228.62266958,0.0004438,120]
[330203740,1719146377996,-228.62266958,0.0004438,120]
[330203741,1719146378021,-228.62266958,0.0004438,120]
[330203742,1719146378048,-228.62266958,0.0004438,120]
[330203743,1719146378074,-228.62266958,0.0004438,120]
[330203744,1719146378102,-228.62266958,0.0004438,120]
[330203745,1719146378125,-228.62266958,0.0004438,120]
[330203746,1719146378149,-228.62266958,0.0004438,120]
[330203747,1719146378173,-228.62266958,0.0004438,120]
[330203748,1719146378198,-228.62266958,0.0004438,120]
[330203749,1719146378222,-228.62266958,0.0004438,120]
[330203750,1719146378246,-229.12,0.0004438,120]
[330203751,1719146378270,-914.56567833,0.0004438,120]
[330203752,1719146378294,-914.56567833,0.0004438,120]
[330203753,1719146378318,-914.56567833,0.0004438,120]
[330203754,1719146378344,-914.56567833,0.0004438,120]
[330203755,1719146378368,-914.56567833,0.0004438,120]
[330203756,1719146378395,-914.56567833,0.0004438,120]
[330203757,1719146378419,-914.56567833,0.0004438,120]
[330203758,1719146378445,-914.56567833,0.0004438,120]
[330203759,1719146378470,-914.56567833,0.0004438,120]
[330203760,1719146378494,-914.56567833,0.0004438,120]
[330203761,1719146378518,-914.56567833,0.0004438,120]
[330203762,1719146378542,-914.56567833,0.0004438,120]
[330203763,1719146378566,-914.56567833,0.0004438,120]
[330203764,1719146378594,-914.56567833,0.0004438,120]
[330203765,1719146378619,-914.56567833,0.0004438,120]
[330203766,1719146378644,-914.56567833,0.0004438,120]
[330203767,1719146378672,-914.56567833,0.0004438,120]
[330203768,1719146378698,-914.56567833,0.0004438,120]
[330203769,1719146378722,-914.56567833,0.0004438,120]
[330203770,1719146378747,-915.06,0.0004438,120]
[330203771,1719146378772,-182.81991231,0.0004438,120]
[330203772,1719146378796,-182.81991231,0.0004438,120]
[330203773,1719146378820,-182.81991231,0.0004438,120]
[330203774,1719146378846,-182.81991231,0.0004438,120]
[330203775,1719146378873,-182.81991231,0.0004438,120]
[330203776,1719146378896,-182.81991231,0.0004438,120]
[330203777,1719146378920,-182.81991231,0.0004438,120]
[330203778,1719146378944,-182.81991231,0.0004438,120]
[330203779,1719146378969,-182.81991231,0.0004438,120]
[330203780,1719146378993,-182.81991231,0.0004438,120]
[330203781,1719146379017,-182.81991231,0.0004438,120]
[330203782,1719146379043,-182.81991231,0.0004438,120]
[330203783,1719146379068,-182.81991231,0.0004438,120]
[330203784,1719146379093,-182.81991231,0.0004438,120]
[330203785,1719146379117,-182.81991231,0.0004438,120]
[330203786,1719146379141,-182.81991231,0.0004438,120]
[330203787,1719146379166,-182.81991231,0.0004438,120]
[330203788,1719146379190,-182.81991231,0.0004438,120]
[330203789,1719146379215,-182.81991231,0.0004438,120]
[330203790,1719146379240,-183.31,0.0004438,120]
[330203791,1719146379265,-731.35464922,0.0004438,120]
[330203792,1719146379289,-731.35464922,0.0004438,120]
[330203793,1719146379314,-731.35464922,0.0004438,120]
[330203794,1719146379338,-731.35464922,0.0004438,120]
[330203795,1719146379363,-731.35464922,0.0004438,120]
[330203796,1719146379390,-731.35464922,0.0004438,120]
[330203797,1719146379415,-731.35464922,0.0004438,120]
[330203798,1719146379449,-731.35464922,0.0004438,120]
[330203799,1719146379477,-731.35464922,0.0004438,120]
[330203800,1719146379501,-731.35464922,0.0004438,120]
[330203801,1719146379526,-731.35464922,0.0004438,120]
[330203802,1719146379551,-731.35464922,0.0004438,120]
[330203803,1719146379575,-731.35464922,0.0004438,120]
[330203804,1719146379600,-731.35464922,0.0004438,120]
[330203805,1719146379793,-731.35464922,0.0004438,120]
[330203806,1719146379820,-731.35464922,0.0004438,120]
[330203807,1719146379845,-731.35464922,0.0004438,120]
[330203808,1719146379869,-731.35464922,0.0004438,120]
[330203809,1719146379896,-731.35464922,0.0004438,120]
[330203810,1719146379921,-731.85,0.0004438,120]
[330203811,1719146379945,-243.53625754,0.0004438,120]
[330203812,1719146379970,-243.53625754,0.0004438,120]
[330203813,1719146379993,-243.53625754,0.0004438,120]
[330203814,1719146380018,-243.53625754,0.0004438,120]
[330203815,1719146380047,-243.53625754,0.0004438,120]
[330203816,1719146380071,-243.53625754,0.0004438,120]
[330203817,1719146380096,-243.53625754,0.0004438,120]
[330203818,1719146380121,-243.53625754,0.0004438,120]
[330203819,1719146380145,-243.53625754,0.0004438,120]
[330203820,1719146380170,-243.53625754,0.0004438,120]
[330203821,1719146380195,-243.53625754,0.0004438,120]
[330203822,1719146380220,-243.53625754,0.0004438,120]
[330203823,1719146380245,-243.53625754,0.0004438,120]
[330203824,1719146380269,-243.53625754,0.0004438,120]
[330203825,1719146380293,-243.53625754,0.0004438,120]
[330203826,1719146380317,-243.53625754,0.0004438,120]
[330203827,1719146380343,-243.53625754,0.0004438,120]
[330203828,1719146380369,-243.53625754,0.0004438,120]
[330203829,1719146380405,-243.53625754,0.0004438,120]
[330203830,1719146380433,-244.03,0.0004438,120]
[330203831,1719146380461,-974.22003017,0.0004438,120]
[330203832,1719146380487,-974.22003017,0.0004438,120]
[330203833,1719146380511,-974.22003017,0.0004438,120]
[330203834,1719146380536,-974.22003017,0.0004438,120]
[330203835,1719146380561,-974.22003017,0.0004438,120]
[330203836,1719146380586,-974.22003017,0.0004438,120]
[330203837,1719146380613,-974.22003017,0.0004438,120]
[330203838,1719146380638,-974.22003017,0.0004438,120]
[330203839,1719146380662,-974.22003017,0.0004438,120]
[330203840,1719146380687,-974.22003017,0.0004438,120]
[330203841,1719146380711,-974.22003017,0.0004438,120]
[330203842,1719146380735,-974.22003017,0.0004438,120]
[330203843,1719146380759,-974.22003017,0.0004438,120]
[330203844,1719146380784,-974.22003017,0.0004438,120]
[330203845,1719146380807,-974.22003017,0.0004438,120]
[330203846,1719146380832,-974.22003017,0.0004438,120]
[330203847,1719146380857,-974.22003017,0.0004438,120]
[330203848,1719146380882,-974.22003017,0.0004438,120]
[330203849,1719146380905,-974.22003017,0.0004438,120]
[330203850,1719146380929,-974.72,0.0004438,120]
[330203851,1719146380956,-500.0,0.00044383,120]
[330203852,1719146380979,-500.0,0.00044383,120]
[330203853,1719146381005,-4272.59,0.00044383,120]
[330203854,1719146381038,-285.47,0.00044383,120]
[330203855,1719146381064,-2379.05,0.00044384,120]
[330203856,1719146381090,-1399.6,0.00044384,120]
[330203857,1719146381117,-167.062311,0.00044448,73]
[330203858,1719146381144,-161.062311,0.00044748,74]
[330203859,1719146381170,-350.0,0.00044874,60]
[330203860,1719146381195,-150.0,0.00044885,120]
[330203861,1719146381220,-1296.5,0.000449,60]
[330203862,1719146381245,-500.0,0.00044931,120]
[330203863,1719146381270,-597.98798241,0.00044931,120]
[330203864,1719146381295,-4272.59,0.00044931,120]
[330203865,1719146381320,-200.0,0.00045,120]
[330203866,1719146381346,-614.81791167,0.00045,60]
[330203867,1719146381369,-150.0,0.00045,85]
[330203868,1719146381399,-754.999987,0.00045,120]
[330203869,1719146381425,-2000.0,0.00045,120]
[330203870,1719146381449,-10000.0,0.00045,120]
[330203871,1719146381475,-503.0,0.00045,120]
[330203872,1719146381499,-138894.6827761,0.00045,45]
[330203994,1719146776895,151.0,0.00020469,120]
[330203995,1719146790228,150.5,0.0001453,30]
[330203996,1719146790892,150.5,0.0001452,30]
[330203997,1719146791401,150.5,0.0001451,30]
[330204012,1719146926234,21509.94647975,0.00026,120]
[330204021,1719147031571,-603.19,0.00010248,2]
[330204022,1719147031581,-4482.874,0.00010723,2]
[330204023,1719147031593,-170.84,0.00012122,2]
[330204024,1719147031610,-161.05154284,0.00012256,2]
[330204025,1719147031620,-1266.87682131,0.00012356,2]
[330204026,1719147031788,150.5,0.00014702,30]
[330204027,1719147032341,235.0,0.00014692,30]
[330204033,1719147037512,-539.00383144,0.00012356,2]
[330204034,1719147037525,-2204.11934725,0.00012356,2]
[330204035,1719147037534,-300.0,0.00012357,2]
[330204036,1719147037545,-2000.0,0.00012358,3]
[330204037,1719147037554,-2166.71,0.00012376,2]
[330204038,1719147037564,-150.0,0.00012404,2]
[330204039,1719147037574,-500.0,0.00012409,2]
[330204040,1719147037584,-1235.09,0.00012412,2]
[330204041,1719147037594,-250.0,0.00012416,2]
[330204042,1719147037610,-250.0,0.00012417,2]
[330204043,1719147037621,-1165.95,0.00012417,2]